[Event "Titled Tuesday Blitz February 15 Early 2022"]
[White "Samunenkov, Ihor"]
[Black "Noroozi, Omid"]
[WhiteFideId "14187086"]
[BlackFideId "12501190"]
[WhiteElo "2406"]
[BlackElo "2236"]
[Result "1-0"]
[Round "08"]
[TimeControl "180+1"]
[Date "2022.02.15"]
[WhiteClock "0:00:02"]
[BlackClock "0:00:10"]

1. d4 {[%clk 0:03:00]}  Nf6 {[%clk 0:02:59]} 2. c4 {[%clk 0:03:01]}  e6 {[%clk 0:02:59]} 3. Nc3 {[%clk 0:03:01]}  Bb4 {[%clk 0:03:00]} 4. e3 {[%clk 0:03:02]}  b6 {[%clk 0:02:58]} 5. Bd2 {[%clk 0:02:58]}  Bb7 {[%clk 0:02:57]} 6. Nf3 {[%clk 0:02:59]}  O-O {[%clk 0:02:56]} 7. Bd3 {[%clk 0:02:59]}  d6 {[%clk 0:02:56]} 8. O-O {[%clk 0:02:56]}  Nbd7 {[%clk 0:02:55]} 9. a3 {[%clk 0:02:47]}  Bxc3 {[%clk 0:02:54]} 10. Bxc3 {[%clk 0:02:48]}  Ne4 {[%clk 0:02:55]} 11. Be1 {[%clk 0:02:48]}  f5 {[%clk 0:02:55]} 12. Nd2 {[%clk 0:02:26]}  Qg5 {[%clk 0:02:50]} 13. Nxe4 {[%clk 0:02:18]}  fxe4 {[%clk 0:02:51]} 14. Bc2 {[%clk 0:02:16]}  Rf6 {[%clk 0:02:41]} 15. Bc3 {[%clk 0:01:46]}  Rg6 {[%clk 0:02:34]} 16. g3 {[%clk 0:01:45]}  Rf8 {[%clk 0:02:35]} 17. f4 {[%clk 0:01:36]}  exf3 {[%clk 0:02:24]} 18. Bxg6 {[%clk 0:01:37]}  Qxe3+ {[%clk 0:02:12]} 19. Rf2 {[%clk 0:01:34]}  hxg6 {[%clk 0:02:13]} 20. Qd2 {[%clk 0:01:26]}  Qxd2 {[%clk 0:02:12]} 21. Bxd2 {[%clk 0:01:27]}  Nf6 {[%clk 0:02:13]} 22. d5 {[%clk 0:01:01]}  Ne4 {[%clk 0:02:09]} 23. dxe6 {[%clk 0:01:01]}  Nxf2 {[%clk 0:02:09]} 24. Kxf2 {[%clk 0:01:02]}  Rf5 {[%clk 0:02:01]} 25. Re1 {[%clk 0:00:57]}  Kf8 {[%clk 0:02:01]} 26. e7+ {[%clk 0:00:55]}  Ke8 {[%clk 0:02:01]} 27. h4 {[%clk 0:00:55]}  b5 {[%clk 0:01:50]} 28. b3 {[%clk 0:00:45]}  bxc4 {[%clk 0:01:23]} 29. bxc4 {[%clk 0:00:46]}  Rc5 {[%clk 0:01:23]} 30. Bg5 {[%clk 0:00:35]}  Rc6 {[%clk 0:01:04]} 31. a4 {[%clk 0:00:03]}  Rxc4 {[%clk 0:00:59]} 32. Rb1 {[%clk 0:00:02]}  Rc2+ {[%clk 0:00:59]} 33. Ke3 {[%clk 0:00:02]}  Re2+ {[%clk 0:00:59]} 34. Kd3 {[%clk 0:00:02]}  Ba6+ {[%clk 0:00:53]} 35. Kd4 {[%clk 0:00:01]}  f2 {[%clk 0:00:54]} 36. Rb8+ {[%clk 0:00:01]}  Kd7 {[%clk 0:00:54]} 37. Rd8+ {[%clk 0:00:02]}  Kc6 {[%clk 0:00:55]} 38. Rf8 {[%clk 0:00:02]}  d5 {[%clk 0:00:24]} 39. Rxf2 {[%clk 0:00:02]}  Re4+ {[%clk 0:00:22]} 40. Kc3 {[%clk 0:00:02]}  Kc5 {[%clk 0:00:22]} 41. Rf8 {[%clk 0:00:02]}  d4+ {[%clk 0:00:21]} 42. Kd2 {[%clk 0:00:02]}  Re2+ {[%clk 0:00:17]} 43. Kd1 {[%clk 0:00:03]}  Kb4 {[%clk 0:00:03]} 44. e8=Q {[%clk 0:00:03]}  Rxe8 {[%clk 0:00:04]} 45. Rxe8 {[%clk 0:00:03]}  c5 {[%clk 0:00:05]} 46. Be7 {[%clk 0:00:03]}  d3 {[%clk 0:00:02]} 47. Rb8+ {[%clk 0:00:02]}  Kxa4 {[%clk 0:00:02]} 48. Bxc5 {[%clk 0:00:02]}  Bc4 {[%clk 0:00:02]} 49. Bxa7 {[%clk 0:00:02]}  Ka5 {[%clk 0:00:03]} 50. Kd2 {[%clk 0:00:02]}  Ka4 {[%clk 0:00:04]} 51. Bd4 {[%clk 0:00:03]}  Ba6 {[%clk 0:00:04]} 52. Bxg7 {[%clk 0:00:03]}  Ka5 {[%clk 0:00:05]} 53. g4 {[%clk 0:00:04]}  Ka4 {[%clk 0:00:06]} 54. h5 {[%clk 0:00:04]}  Ka5 {[%clk 0:00:07]} 55. hxg6 {[%clk 0:00:04]}  Ka4 {[%clk 0:00:08]} 56. Bc3 {[%clk 0:00:04]}  Ka3 {[%clk 0:00:08]} 57. Ra8 {[%clk 0:00:04]}  Ka2 {[%clk 0:00:08]} 58. Rxa6+ {[%clk 0:00:04]}  Kb3 {[%clk 0:00:09]} 59. Rb6+ {[%clk 0:00:04]}  Ka2 {[%clk 0:00:10]} 60. Kxd3 {[%clk 0:00:02]} 1-0


[Site "https://www.chess.com"]

[Event "Titled Tuesday Blitz February 15 Early 2022"]
[White "Sanal, Vahap"]
[Black "Mikhailovsky, Vladimir"]
[WhiteFideId "6300545"]
[BlackFideId "34105414"]
[WhiteElo "2603"]
[BlackElo "2371"]
[Result "1-0"]
[Round "08"]
[TimeControl "180+1"]
[Date "2022.02.15"]
[WhiteClock "0:00:32"]
[BlackClock "0:00:01"]

1. d4 {[%clk 0:03:00]}  d5 {[%clk 0:02:59]} 2. Nf3 {[%clk 0:03:00]}  Nf6 {[%clk 0:02:59]} 3. Bf4 {[%clk 0:03:00]}  c5 {[%clk 0:02:59]} 4. e3 {[%clk 0:03:00]}  Nc6 {[%clk 0:02:58]} 5. Nbd2 {[%clk 0:03:00]}  cxd4 {[%clk 0:02:43]} 6. exd4 {[%clk 0:03:00]}  Bg4 {[%clk 0:02:36]} 7. c3 {[%clk 0:02:58]}  e6 {[%clk 0:02:34]} 8. Qb3 {[%clk 0:02:58]}  Bd6 {[%clk 0:02:30]} 9. Qxb7 {[%clk 0:02:42]}  Bxf4 {[%clk 0:02:29]} 10. Qxc6+ {[%clk 0:02:42]}  Kf8 {[%clk 0:02:29]} 11. Ne5 {[%clk 0:02:29]}  Bf5 {[%clk 0:02:11]} 12. Qc5+ {[%clk 0:02:23]}  Kg8 {[%clk 0:02:08]} 13. Ndf3 {[%clk 0:02:00]}  Ne4 {[%clk 0:02:05]} 14. Qa3 {[%clk 0:01:58]}  f6 {[%clk 0:01:48]} 15. Nc6 {[%clk 0:01:52]}  Qb6 {[%clk 0:01:09]} 16. Ne7+ {[%clk 0:01:35]}  Kf7 {[%clk 0:01:09]} 17. Nxf5 {[%clk 0:01:35]}  exf5 {[%clk 0:01:10]} 18. Qb3 {[%clk 0:01:33]}  Rhe8 {[%clk 0:00:59]} 19. Be2 {[%clk 0:01:24]}  Qe6 {[%clk 0:00:36]} 20. O-O {[%clk 0:01:19]}  Rab8 {[%clk 0:00:36]} 21. Qc2 {[%clk 0:01:19]}  Nxc3 {[%clk 0:00:32]} 22. bxc3 {[%clk 0:01:19]}  Qxe2 {[%clk 0:00:32]} 23. Qxf5 {[%clk 0:01:20]}  Qe4 {[%clk 0:00:28]} 24. Qh5+ {[%clk 0:01:18]}  Kf8 {[%clk 0:00:18]} 25. Rae1 {[%clk 0:01:18]}  Qd3 {[%clk 0:00:07]} 26. Qxd5 {[%clk 0:01:16]}  Qxc3 {[%clk 0:00:06]} 27. Qf5 {[%clk 0:01:15]}  Bd6 {[%clk 0:00:03]} 28. Qxh7 {[%clk 0:01:13]}  Rbd8 {[%clk 0:00:02]} 29. Qh8+ {[%clk 0:01:11]}  Kf7 {[%clk 0:00:02]} 30. Qh5+ {[%clk 0:01:12]}  Kf8 {[%clk 0:00:02]} 31. g3 {[%clk 0:01:02]}  Qc4 {[%clk 0:00:02]} 32. Nh4 {[%clk 0:00:57]}  Qxa2 {[%clk 0:00:01]} 33. Ng6+ {[%clk 0:00:56]}  Kg8 {[%clk 0:00:02]} 34. Ra1 {[%clk 0:00:47]}  Qe6 {[%clk 0:00:01]} 35. Rxa7 {[%clk 0:00:45]}  Rd7 {[%clk 0:00:02]} 36. Ra6 {[%clk 0:00:36]}  Red8 {[%clk 0:00:02]} 37. Raa1 {[%clk 0:00:32]}  Qe8 {[%clk 0:00:01]} 38. Rae1 {[%clk 0:00:32]} 1-0


[Site "https://www.chess.com"]

[Event "Titled Tuesday Blitz February 15 Early 2022"]
[White "Sargsyan, Anna M."]
[Black "Fernandez, Michael"]
[WhiteFideId "13308130"]
[BlackFideId "5803560"]
[WhiteElo "2271"]
[BlackElo "2110"]
[Result "0-1"]
[Round "08"]
[TimeControl "180+1"]
[Date "2022.02.15"]
[WhiteClock "0:01:20"]
[BlackClock "0:00:31"]

1. d4 {[%clk 0:02:58]}  b5 {[%clk 0:03:00]} 2. e4 {[%clk 0:02:57]}  Bb7 {[%clk 0:03:00]} 3. f3 {[%clk 0:02:55]}  b4 {[%clk 0:03:00]} 4. Bd3 {[%clk 0:02:55]}  e6 {[%clk 0:02:55]} 5. Ne2 {[%clk 0:02:55]}  c5 {[%clk 0:02:54]} 6. Be3 {[%clk 0:02:51]}  cxd4 {[%clk 0:02:53]} 7. Nxd4 {[%clk 0:02:52]}  Nf6 {[%clk 0:02:46]} 8. O-O {[%clk 0:02:51]}  Bc5 {[%clk 0:02:43]} 9. Bf2 {[%clk 0:02:47]}  O-O {[%clk 0:02:33]} 10. Kh1 {[%clk 0:02:46]}  d6 {[%clk 0:02:32]} 11. Nd2 {[%clk 0:02:45]}  Nc6 {[%clk 0:02:28]} 12. Nxc6 {[%clk 0:02:43]}  Bxc6 {[%clk 0:02:28]} 13. e5 {[%clk 0:02:41]}  Bxf2 {[%clk 0:02:20]} 14. exf6 {[%clk 0:02:39]}  Bd4 {[%clk 0:02:21]} 15. fxg7 {[%clk 0:02:39]}  Bxg7 {[%clk 0:02:21]} 16. Qe2 {[%clk 0:02:29]}  Qh4 {[%clk 0:02:08]} 17. Rad1 {[%clk 0:02:15]}  Rad8 {[%clk 0:02:03]} 18. Be4 {[%clk 0:02:09]}  Bxe4 {[%clk 0:01:52]} 19. Nxe4 {[%clk 0:02:10]}  d5 {[%clk 0:01:52]} 20. Nc5 {[%clk 0:02:04]}  Bxb2 {[%clk 0:01:48]} 21. f4 {[%clk 0:01:59]}  Kh8 {[%clk 0:01:36]} 22. c4 {[%clk 0:01:54]}  bxc3 {[%clk 0:01:29]} 23. Rd3 {[%clk 0:01:50]}  Rc8 {[%clk 0:01:15]} 24. Nd7 {[%clk 0:01:50]}  c2 {[%clk 0:01:07]} 25. Rdd1 {[%clk 0:01:40]}  cxd1=Q {[%clk 0:00:59]} 26. Qxb2+ {[%clk 0:01:38]}  f6 {[%clk 0:00:57]} 27. Rxd1 {[%clk 0:01:37]}  Rf7 {[%clk 0:00:46]} 28. Qb5 {[%clk 0:01:31]}  Qxf4 {[%clk 0:00:42]} 29. Nc5 {[%clk 0:01:25]}  Qc4 {[%clk 0:00:36]} 30. Qxc4 {[%clk 0:01:22]}  dxc4 {[%clk 0:00:37]} 31. Nxe6 {[%clk 0:01:22]}  c3 {[%clk 0:00:35]} 32. Rc1 {[%clk 0:01:20]}  c2 {[%clk 0:00:31]} 0-1


[Site "https://www.chess.com"]

[Event "Titled Tuesday Blitz February 15 Early 2022"]
[White "Sarkar, Justin"]
[Black "Danaci, Ege"]
[WhiteFideId "2010011"]
[BlackFideId "34506748"]
[WhiteElo "2038"]
[BlackElo "1799"]
[Result "1-0"]
[Round "08"]
[TimeControl "180+1"]
[Date "2022.02.15"]
[WhiteClock "0:00:40"]
[BlackClock "0:01:38"]

1. e4 {[%clk 0:02:56]}  d5 {[%clk 0:02:59]} 2. exd5 {[%clk 0:02:55]}  Qxd5 {[%clk 0:03:00]} 3. Nc3 {[%clk 0:02:53]}  Qd8 {[%clk 0:03:00]} 4. d4 {[%clk 0:02:41]}  Nf6 {[%clk 0:03:00]} 5. Nf3 {[%clk 0:02:40]}  Bg4 {[%clk 0:02:59]} 6. h3 {[%clk 0:02:39]}  Bh5 {[%clk 0:02:57]} 7. g4 {[%clk 0:02:30]}  Bg6 {[%clk 0:02:57]} 8. Ne5 {[%clk 0:02:30]}  Nbd7 {[%clk 0:02:54]} 9. Nxg6 {[%clk 0:02:12]}  hxg6 {[%clk 0:02:54]} 10. Bg2 {[%clk 0:02:11]}  c6 {[%clk 0:02:52]} 11. d5 {[%clk 0:02:02]}  cxd5 {[%clk 0:02:19]} 12. Nxd5 {[%clk 0:02:00]}  e6 {[%clk 0:01:55]} 13. Nxf6+ {[%clk 0:01:54]}  Qxf6 {[%clk 0:01:50]} 14. Bxb7 {[%clk 0:01:47]}  Bc5 {[%clk 0:01:48]} 15. Qf3 {[%clk 0:01:32]}  Rb8 {[%clk 0:01:38]} 16. Qxf6 {[%clk 0:01:25]}  gxf6 {[%clk 0:01:39]} 17. Bc6 {[%clk 0:01:19]}  Ke7 {[%clk 0:01:39]} 18. Bxd7 {[%clk 0:00:42]}  Kxd7 {[%clk 0:01:40]} 19. Be3 {[%clk 0:00:41]}  Bxe3 {[%clk 0:01:38]} 20. fxe3 {[%clk 0:00:40]}  Rxb2 {[%clk 0:01:38]} 21. O-O-O+ {[%clk 0:00:40]}  Ke7 {[%clk 0:01:38]} 22. Kxb2 {[%clk 0:00:40]} 1-0


[Site "https://www.chess.com"]

[Event "Titled Tuesday Blitz February 15 Early 2022"]
[White "Seo, Jung Min"]
[Black "Nesterov, Arseniy"]
[WhiteFideId "1734687"]
[BlackFideId "24198455"]
[WhiteElo "2401"]
[BlackElo "2489"]
[Result "1/2-1/2"]
[Round "08"]
[TimeControl "180+1"]
[Date "2022.02.15"]
[WhiteClock "0:00:57"]
[BlackClock "0:00:09"]

1. e4 {[%clk 0:03:00]}  e5 {[%clk 0:03:00]} 2. Nf3 {[%clk 0:03:00]}  Nc6 {[%clk 0:03:00]} 3. Bb5 {[%clk 0:02:59]}  a6 {[%clk 0:03:01]} 4. Ba4 {[%clk 0:02:59]}  b5 {[%clk 0:03:01]} 5. Bb3 {[%clk 0:02:59]}  Na5 {[%clk 0:03:02]} 6. O-O {[%clk 0:02:55]}  d6 {[%clk 0:03:02]} 7. d4 {[%clk 0:02:52]}  exd4 {[%clk 0:03:03]} 8. Nxd4 {[%clk 0:02:52]}  Bb7 {[%clk 0:03:03]} 9. c3 {[%clk 0:02:47]}  Nxb3 {[%clk 0:03:02]} 10. axb3 {[%clk 0:02:47]}  g6 {[%clk 0:02:52]} 11. Re1 {[%clk 0:02:44]}  Bg7 {[%clk 0:02:51]} 12. b4 {[%clk 0:02:44]}  Ne7 {[%clk 0:02:49]} 13. Nd2 {[%clk 0:02:44]}  O-O {[%clk 0:02:48]} 14. N2b3 {[%clk 0:02:44]}  Rb8 {[%clk 0:02:46]} 15. Bf4 {[%clk 0:02:40]}  h6 {[%clk 0:02:33]} 16. e5 {[%clk 0:02:38]}  Nd5 {[%clk 0:02:30]} 17. Bg3 {[%clk 0:02:37]}  dxe5 {[%clk 0:01:52]} 18. Bxe5 {[%clk 0:02:36]}  Bxe5 {[%clk 0:01:53]} 19. Rxe5 {[%clk 0:02:36]}  Qf6 {[%clk 0:01:54]} 20. Re1 {[%clk 0:02:23]}  Nf4 {[%clk 0:01:50]} 21. f3 {[%clk 0:02:21]}  Qg5 {[%clk 0:01:45]} 22. Qc2 {[%clk 0:02:18]}  Rbd8 {[%clk 0:01:40]} 23. Kh1 {[%clk 0:02:09]}  Rfe8 {[%clk 0:01:26]} 24. Nc5 {[%clk 0:02:07]}  Bd5 {[%clk 0:01:01]} 25. Nxa6 {[%clk 0:02:01]}  Bc4 {[%clk 0:00:37]} 26. Nxc7 {[%clk 0:01:49]}  Re2 {[%clk 0:00:23]} 27. Rxe2 {[%clk 0:01:41]}  Bxe2 {[%clk 0:00:23]} 28. Rg1 {[%clk 0:01:15]}  Qe5 {[%clk 0:00:21]} 29. Na6 {[%clk 0:01:08]}  Nh3 {[%clk 0:00:09]} 30. Re1 {[%clk 0:00:56]}  Nf2+ {[%clk 0:00:08]} 31. Kg1 {[%clk 0:00:57]}  Qe3 {[%clk 0:00:07]} 32. Qxe2 {[%clk 0:00:56]}  Nh3+ {[%clk 0:00:07]} 33. Kh1 {[%clk 0:00:56]}  Nf2+ {[%clk 0:00:08]} 34. Kg1 {[%clk 0:00:57]}  Nh3+ {[%clk 0:00:08]} 35. Kh1 {[%clk 0:00:57]}  Nf2+ {[%clk 0:00:09]} 36. Kg1 {[%clk 0:00:57]} 1/2-1/2


[Site "https://www.chess.com"]

[Event "Titled Tuesday Blitz February 15 Early 2022"]
[White "Shuvalova, Polina"]
[Black "Kovanova, Baira"]
[WhiteFideId "24171760"]
[BlackFideId "4164083"]
[WhiteElo "2355"]
[BlackElo "2190"]
[Result "1/2-1/2"]
[Round "08"]
[TimeControl "180+1"]
[Date "2022.02.15"]
[WhiteClock "0:00:32"]
[BlackClock "0:00:15"]

1. e4 {[%clk 0:03:00]}  e5 {[%clk 0:02:59]} 2. Nf3 {[%clk 0:02:59]}  Nc6 {[%clk 0:02:58]} 3. Bb5 {[%clk 0:02:58]}  a6 {[%clk 0:02:57]} 4. Bxc6 {[%clk 0:02:55]}  dxc6 {[%clk 0:02:55]} 5. O-O {[%clk 0:02:56]}  Bg4 {[%clk 0:02:55]} 6. h3 {[%clk 0:02:55]}  h5 {[%clk 0:02:52]} 7. d3 {[%clk 0:02:51]}  Qf6 {[%clk 0:02:51]} 8. Be3 {[%clk 0:02:39]}  Bxf3 {[%clk 0:02:50]} 9. Qxf3 {[%clk 0:02:39]}  Qxf3 {[%clk 0:02:50]} 10. gxf3 {[%clk 0:02:40]}  Bd6 {[%clk 0:02:44]} 11. Nd2 {[%clk 0:02:37]}  Ne7 {[%clk 0:02:12]} 12. Nc4 {[%clk 0:02:36]}  g5 {[%clk 0:01:43]} 13. Kh2 {[%clk 0:02:28]}  f6 {[%clk 0:01:38]} 14. d4 {[%clk 0:02:24]}  exd4+ {[%clk 0:01:33]} 15. Nxd6+ {[%clk 0:02:22]}  cxd6 {[%clk 0:01:33]} 16. Bxd4 {[%clk 0:02:23]}  Kf7 {[%clk 0:01:32]} 17. Rad1 {[%clk 0:02:22]}  Ng6 {[%clk 0:01:20]} 18. Rd2 {[%clk 0:02:10]}  Rad8 {[%clk 0:01:16]} 19. c4 {[%clk 0:02:06]}  Ke6 {[%clk 0:01:12]} 20. Rfd1 {[%clk 0:02:03]}  Rd7 {[%clk 0:01:09]} 21. b3 {[%clk 0:02:01]}  Rhh7 {[%clk 0:01:04]} 22. Be3 {[%clk 0:01:43]}  Ne5 {[%clk 0:01:00]} 23. Kg2 {[%clk 0:01:42]}  Rhg7 {[%clk 0:00:49]} 24. Bd4 {[%clk 0:01:34]}  Ng6 {[%clk 0:00:45]} 25. Kg3 {[%clk 0:01:32]}  Rgf7 {[%clk 0:00:34]} 26. Be3 {[%clk 0:01:28]}  h4+ {[%clk 0:00:34]} 27. Kg2 {[%clk 0:01:27]}  Rg7 {[%clk 0:00:31]} 28. Kh2 {[%clk 0:01:23]}  Ne5 {[%clk 0:00:31]} 29. Kg2 {[%clk 0:01:24]}  Ng6 {[%clk 0:00:31]} 30. a4 {[%clk 0:01:20]}  Ne5 {[%clk 0:00:31]} 31. a5 {[%clk 0:01:20]}  Ng6 {[%clk 0:00:25]} 32. Bd4 {[%clk 0:01:19]}  Nf4+ {[%clk 0:00:18]} 33. Kh2 {[%clk 0:01:19]}  Ng6 {[%clk 0:00:18]} 34. b4 {[%clk 0:01:18]}  Ne5 {[%clk 0:00:18]} 35. Bxe5 {[%clk 0:01:14]}  dxe5 {[%clk 0:00:18]} 36. Kg2 {[%clk 0:00:52]}  Rxd2 {[%clk 0:00:15]} 37. Rxd2 {[%clk 0:00:53]}  Rd7 {[%clk 0:00:15]} 38. Rxd7 {[%clk 0:00:42]}  Kxd7 {[%clk 0:00:15]} 39. Kf1 {[%clk 0:00:43]}  Kd6 {[%clk 0:00:14]} 40. Ke2 {[%clk 0:00:43]}  Ke6 {[%clk 0:00:14]} 41. Ke3 {[%clk 0:00:42]}  Kd6 {[%clk 0:00:13]} 42. Kd3 {[%clk 0:00:42]}  Ke6 {[%clk 0:00:13]} 43. Ke3 {[%clk 0:00:43]}  Kd6 {[%clk 0:00:13]} 44. Kd2 {[%clk 0:00:43]}  Ke6 {[%clk 0:00:13]} 45. Kd3 {[%clk 0:00:43]}  Kd6 {[%clk 0:00:14]} 46. Kc3 {[%clk 0:00:35]}  Ke6 {[%clk 0:00:14]} 47. Kd3 {[%clk 0:00:31]}  Kd6 {[%clk 0:00:14]} 48. Ke3 {[%clk 0:00:32]}  Ke6 {[%clk 0:00:15]} 49. Kd3 {[%clk 0:00:32]} 1/2-1/2


[Site "https://www.chess.com"]

[Event "Titled Tuesday Blitz February 15 Early 2022"]
[White "Shvedova, Alexandra"]
[Black "Janaszak, Dawid"]
[WhiteFideId "54154782"]
[BlackFideId "1119206"]
[WhiteElo "1920"]
[BlackElo "2199"]
[Result "0-1"]
[Round "08"]
[TimeControl "180+1"]
[Date "2022.02.15"]
[WhiteClock "0:00:13"]
[BlackClock "0:00:53"]

1. e4 {[%clk 0:03:00]}  c5 {[%clk 0:02:59]} 2. Ne2 {[%clk 0:03:01]}  Nc6 {[%clk 0:02:59]} 3. d4 {[%clk 0:03:00]}  cxd4 {[%clk 0:03:00]} 4. Nxd4 {[%clk 0:03:01]}  g6 {[%clk 0:03:00]} 5. c4 {[%clk 0:03:01]}  Bg7 {[%clk 0:03:00]} 6. Be3 {[%clk 0:03:01]}  Qb6 {[%clk 0:03:00]} 7. Nb5 {[%clk 0:02:38]}  Qd8 {[%clk 0:02:55]} 8. N1c3 {[%clk 0:02:35]}  a6 {[%clk 0:02:51]} 9. Nd4 {[%clk 0:02:35]}  d6 {[%clk 0:02:46]} 10. Be2 {[%clk 0:02:31]}  Nf6 {[%clk 0:02:45]} 11. O-O {[%clk 0:02:28]}  O-O {[%clk 0:02:45]} 12. Rc1 {[%clk 0:02:19]}  Bd7 {[%clk 0:02:45]} 13. f3 {[%clk 0:02:12]}  Rb8 {[%clk 0:02:41]} 14. Qd2 {[%clk 0:02:01]}  Nxd4 {[%clk 0:02:41]} 15. Bxd4 {[%clk 0:02:02]}  Bc6 {[%clk 0:02:40]} 16. Rfd1 {[%clk 0:01:56]}  Nd7 {[%clk 0:02:40]} 17. Be3 {[%clk 0:01:53]}  b5 {[%clk 0:02:36]} 18. cxb5 {[%clk 0:01:44]}  axb5 {[%clk 0:02:37]} 19. b3 {[%clk 0:01:42]}  b4 {[%clk 0:02:28]} 20. Nd5 {[%clk 0:01:41]}  Bxd5 {[%clk 0:02:27]} 21. Qxd5 {[%clk 0:01:42]}  Bc3 {[%clk 0:02:04]} 22. f4 {[%clk 0:01:27]}  Nf6 {[%clk 0:02:03]} 23. Qd3 {[%clk 0:01:26]}  Qa5 {[%clk 0:01:56]} 24. a4 {[%clk 0:01:20]}  Rfd8 {[%clk 0:01:53]} 25. Bd4 {[%clk 0:01:00]}  d5 {[%clk 0:01:42]} 26. e5 {[%clk 0:00:50]}  Ne4 {[%clk 0:01:41]} 27. Bf3 {[%clk 0:00:43]}  Bxd4+ {[%clk 0:01:16]} 28. Qxd4 {[%clk 0:00:44]}  Nc3 {[%clk 0:01:16]} 29. Re1 {[%clk 0:00:39]}  e6 {[%clk 0:01:16]} 30. Kh1 {[%clk 0:00:37]}  Qb6 {[%clk 0:01:16]} 31. Qd2 {[%clk 0:00:38]}  d4 {[%clk 0:01:15]} 32. h3 {[%clk 0:00:35]}  d3 {[%clk 0:01:15]} 33. g4 {[%clk 0:00:27]}  Rd4 {[%clk 0:01:10]} 34. f5 {[%clk 0:00:22]}  Rbd8 {[%clk 0:01:02]} 35. f6 {[%clk 0:00:21]}  Qc5 {[%clk 0:01:02]} 36. Rg1 {[%clk 0:00:18]}  Qxe5 {[%clk 0:00:59]} 37. g5 {[%clk 0:00:17]}  Qf4 {[%clk 0:00:53]} 38. Qxf4 {[%clk 0:00:14]}  Rxf4 {[%clk 0:00:54]} 39. a5 {[%clk 0:00:13]}  Rxf3 {[%clk 0:00:53]} 0-1


[Site "https://www.chess.com"]

[Event "Titled Tuesday Blitz February 15 Early 2022"]
[White "Stankovic, Ivan G"]
[Black "Howell, David W L"]
[WhiteFideId "902837"]
[BlackFideId "410608"]
[WhiteElo "2195"]
[BlackElo "2559"]
[Result "0-1"]
[Round "08"]
[TimeControl "180+1"]
[Date "2022.02.15"]
[WhiteClock "0:01:35"]
[BlackClock "0:01:18"]

1. e4 {[%clk 0:03:00]}  e5 {[%clk 0:02:57]} 2. d4 {[%clk 0:02:57]}  exd4 {[%clk 0:02:55]} 3. Qxd4 {[%clk 0:02:57]}  Nc6 {[%clk 0:02:54]} 4. Qe3 {[%clk 0:02:57]}  Nf6 {[%clk 0:02:54]} 5. Nc3 {[%clk 0:02:57]}  Bb4 {[%clk 0:02:54]} 6. Bd2 {[%clk 0:02:57]}  O-O {[%clk 0:02:54]} 7. O-O-O {[%clk 0:02:56]}  Re8 {[%clk 0:02:55]} 8. f3 {[%clk 0:02:56]}  d5 {[%clk 0:02:52]} 9. Qf2 {[%clk 0:02:57]}  dxe4 {[%clk 0:02:16]} 10. Bg5 {[%clk 0:02:56]}  Bd7 {[%clk 0:01:40]} 11. Nd5 {[%clk 0:02:54]}  Be7 {[%clk 0:01:38]} 12. Nxe7+ {[%clk 0:02:30]}  Qxe7 {[%clk 0:01:35]} 13. Bxf6 {[%clk 0:02:30]}  gxf6 {[%clk 0:01:33]} 14. fxe4 {[%clk 0:02:22]}  Rad8 {[%clk 0:01:27]} 15. Qg3+ {[%clk 0:01:54]}  Kh8 {[%clk 0:01:25]} 16. Qxc7 {[%clk 0:01:45]}  Bg4 {[%clk 0:01:19]} 17. Rxd8 {[%clk 0:01:41]}  Rxd8 {[%clk 0:01:20]} 18. Qxe7 {[%clk 0:01:35]}  Rd1# {[%clk 0:01:18]} 0-1


[Site "https://www.chess.com"]